lending/lending_fUSD_20241229
["ID","MTS","AMOUNT","RATE_DAILY","PERIOD"]
[347134404,1735516234875,-500.0,0.0001327,2]
[347134405,1735516234885,-1928.17,0.0001327,2]
[347134406,1735516234894,-500.0,0.0001327,2]
[347134407,1735516234903,-500.0,0.0001327,2]
[347134408,1735516234912,-500.0,0.0001327,2]
[347134409,1735516234924,-841.72,0.0001327,2]
[347134410,1735516234934,-500.0,0.0001327,2]
[347134411,1735516234943,-500.0,0.0001327,2]
[347134412,1735516234953,-500.0,0.0001327,2]
[347134413,1735516234963,-1373.86,0.0001327,2]
[347134414,1735516234972,-8537.56,0.0001327,2]
[347134415,1735516234981,-500.0,0.0001327,2]
[347134416,1735516234990,-500.0,0.0001327,2]
[347134417,1735516235000,-500.0,0.0001327,2]
[347134418,1735516235009,-500.0,0.0001327,2]
[347134419,1735516235018,-500.0,0.0001327,2]
[347134420,1735516235027,-1110.5,0.0001327,2]
[347134421,1735516235037,-500.0,0.0001327,2]
[347134422,1735516235047,-718.83,0.0001327,2]
[347134423,1735516235056,-500.0,0.0001327,2]
[347134424,1735516235066,-500.0,0.0001327,2]
[347134425,1735516235075,-1751.26,0.0001327,2]
[347134426,1735516235085,-500.0,0.0001327,2]
[347134427,1735516235094,-500.0,0.0001327,2]
[347134428,1735516235103,-500.0,0.0001327,2]
[347134429,1735516235112,-500.0,0.0001327,2]
[347134430,1735516235122,-500.0,0.0001327,2]
[347134431,1735516235134,-500.0,0.0001327,2]
[347134432,1735516235146,-500.0,0.0001327,2]
[347134433,1735516235156,-3277.3,0.0001327,2]
[347134434,1735516235166,-500.0,0.0001327,2]
[347134435,1735516235175,-500.0,0.0001327,2]
[347134436,1735516235185,-500.0,0.0001327,2]
[347134437,1735516235195,-500.0,0.0001327,2]
[347134438,1735516235204,-1266.29,0.0001327,2]
[347134439,1735516235213,-500.0,0.0001327,2]
[347134440,1735516235223,-500.0,0.0001327,2]
[347134441,1735516235232,-500.0,0.0001327,2]
[347134442,1735516235241,-931.0,0.0001327,2]
[347134443,1735516235250,-500.0,0.0001327,2]
[347134444,1735516235260,-500.0,0.0001327,2]
[347134445,1735516235269,-500.0,0.0001327,2]
[347134446,1735516235279,-500.0,0.0001327,2]
[347134447,1735516235287,-500.0,0.0001327,2]
[347134448,1735516235296,-500.0,0.0001327,2]
[347134449,1735516235305,-500.0,0.0001327,2]
[347134450,1735516235314,-500.0,0.0001327,2]
[347134451,1735516235324,-500.0,0.0001327,2]
[347134452,1735516235333,-500.0,0.0001327,2]
[347134453,1735516235343,-682.0,0.0001327,2]
[347134454,1735516235352,-500.0,0.0001327,2]
[347134455,1735516235362,-500.0,0.0001327,2]
[347134456,1735516235371,-500.0,0.0001327,2]
[347134457,1735516235380,-500.0,0.0001327,2]
[347134458,1735516235390,-500.0,0.0001327,2]
[347134459,1735516235399,-1235.98,0.0001327,2]
[347134460,1735516235409,-500.0,0.0001327,2]
[347134461,1735516235418,-500.0,0.0001327,2]
[347134462,1735516235427,-500.0,0.0001327,2]
[347134463,1735516235437,-500.0,0.00013271,2]
[347134464,1735516235446,-500.0,0.00013271,2]
[347134465,1735516235455,-512.65761475,0.00013271,2]
[347134466,1735516235465,-500.0,0.00013271,2]
[347134467,1735516235475,-500.0,0.00013271,2]
[347134468,1735516235484,-500.0,0.00013271,2]
[347134469,1735516235493,-551.92,0.00013271,2]
[347134470,1735516235503,-500.0,0.00013271,2]
[347134471,1735516235512,-517.03,0.00013271,2]
[347134472,1735516235521,-500.0,0.00013271,2]
[347134473,1735516235531,-500.0,0.00013271,2]
[347134474,1735516235541,-500.0,0.00013271,2]
[347134475,1735516235551,-500.0,0.00013271,2]
[347134476,1735516235560,-500.0,0.00013271,2]
[347134477,1735516235570,-500.0,0.00013271,2]
[347134478,1735516235579,-500.0,0.00013271,2]
[347134479,1735516235589,-584.89,0.00013271,2]
[347134480,1735516235599,-578.35,0.00013271,2]
[347134481,1735516235608,-500.0,0.00013271,2]
[347134482,1735516235618,-500.0,0.00013271,2]
[347134483,1735516235627,-598.06,0.00013271,2]
[347134484,1735516235636,-500.0,0.00013271,2]
[347134485,1735516235645,-500.0,0.00013271,2]
[347134486,1735516235657,-589.08,0.00013271,2]
[347134487,1735516235667,-500.0,0.00013271,2]
[347134488,1735516235676,-560.28,0.00013271,2]
[347134489,1735516235685,-500.0,0.00013271,2]
[347134490,1735516235694,-500.0,0.00013271,2]
[347134491,1735516235704,-500.0,0.00013271,2]
[347134492,1735516235713,-500.0,0.00013271,2]
[347134493,1735516235723,-634.09,0.00013271,2]
[347134494,1735516235733,-500.0,0.00013271,2]
[347134495,1735516235939,-500.0,0.00013271,2]
[347134496,1735516235950,-500.0,0.00013271,2]
[347134497,1735516235960,-580.17,0.00013271,2]
[347134498,1735516235969,-500.0,0.00013271,2]
[347134499,1735516235978,-545.11,0.00013271,2]
[347134500,1735516235989,-518.16,0.00013271,2]
[347134501,1735516235998,-500.0,0.00013271,2]
[347134502,1735516236007,-500.0,0.00013271,2]
[347134503,1735516236017,-500.0,0.00013271,2]
[347134504,1735516236026,-542.52,0.00013271,2]
[347134505,1735516236036,-2855.85,0.00013271,2]
[347134506,1735516236046,-500.0,0.00013271,2]
[347134507,1735516236057,-500.0,0.00013271,2]
[347134508,1735516236067,-1808.1,0.00013271,2]
[347134509,1735516236077,-660.73,0.00013271,2]
[347134510,1735516236087,-504.46,0.00013271,2]
[347134511,1735516236097,-642.24,0.00013271,2]
[347134512,1735516236107,-1367.71,0.00013271,2]
[347134513,1735516236117,-651.87,0.00013271,2]
[347134514,1735516236127,-500.0,0.00013271,2]
[347134515,1735516236136,-551.96,0.00013271,2]
[347134516,1735516236146,-500.0,0.00013271,2]
[347134517,1735516236155,-500.0,0.00013271,2]
[347134518,1735516236165,-500.0,0.00013271,2]
[347134519,1735516236174,-686.59,0.00013271,2]
[347134520,1735516236184,-500.0,0.00013271,2]
[347134521,1735516236194,-500.0,0.00013271,2]
[347134522,1735516236203,-631.73,0.00013271,2]
[347134523,1735516236212,-500.0,0.00013271,2]
[347134524,1735516236222,-530.88,0.00013271,2]
[347134525,1735516236232,-580.99,0.00013271,2]
[347134526,1735516236241,-500.0,0.00013271,2]
[347134527,1735516236251,-500.0,0.00013271,2]
[347134528,1735516236261,-503.47,0.00013271,2]
[347134529,1735516236270,-156.627051,0.00013272,2]
[347134530,1735516236280,-1407.42,0.00013272,2]
[347134531,1735516236289,-1868.76,0.00013272,2]
[347134532,1735516236298,-3991.55,0.00013272,2]
[347134533,1735516236308,-2088.64,0.00013272,2]
[347134534,1735516236317,-7778.66,0.00013272,2]
[347134535,1735516236327,-1111.123008,0.00013298,2]
[347134536,1735516236337,-1111.123008,0.00013298,3]
[347134537,1735516236346,-676.27,0.00013411,2]
[347134538,1735516236355,-500.0,0.00013411,2]
[347134539,1735516236364,-849.64,0.00013411,2]
[347134540,1735516236374,-613.74,0.00013411,2]
[347134541,1735516236383,-1019.73,0.00013411,2]
[347134542,1735516236392,-690.15,0.00013411,2]
[347134543,1735516236402,-694.7,0.00013411,2]
[347134544,1735516236411,-955.87,0.00013411,2]
[347134545,1735516236422,-737.04,0.00013411,2]
[347134546,1735516236432,-631.2,0.00013411,2]
[347134547,1735516236442,-772.7,0.00013411,2]
[347134548,1735516236453,-629.08,0.00013411,2]
[347134549,1735516236462,-1287.3,0.00013411,2]
[347134550,1735516236471,-785.01,0.00013411,2]
[347134551,1735516236482,-1136.06,0.00013411,2]
[347134552,1735516236491,-500.0,0.00013411,2]
[347134553,1735516236501,-1233.15,0.00013411,2]
[347134554,1735516236510,-578.81,0.00013411,2]
[347134555,1735516236520,-827.41,0.00013411,2]
[347134556,1735516236529,-790.42,0.00013411,2]
[347134557,1735516236539,-500.0,0.00013411,2]
[347134558,1735516236548,-985.95,0.00013411,2]
[347134559,1735516236557,-500.0,0.00013411,2]
[347134560,1735516236566,-528.03,0.00013411,2]
[347134561,1735516236576,-752.64,0.00013411,2]
[347134562,1735516236586,-2118.47,0.00013411,2]
[347134563,1735516236596,-3403.16,0.00013411,2]
[347134564,1735516236605,-1549.26,0.00013411,2]
[347134565,1735516236614,-1958.8,0.00013411,2]
[347134566,1735516236624,-436.65,0.00013452,2]
[347134567,1735516236633,-300.0,0.00013452,2]
[347134568,1735516236644,-150.0,0.00013452,2]
[347134569,1735516236655,-308.4,0.00013452,2]
[347134570,1735516236666,-150.0,0.00013453,2]
[347134571,1735516236676,-1111.123008,0.00013498,4]
[347134572,1735516236686,-1111.123008,0.00013498,3]
[347134573,1735516236697,-1111.123008,0.00013498,2]
[347134574,1735516236707,-503.24,0.00013541,2]
[347134575,1735516236717,-500.0,0.00013541,2]
[347134576,1735516236728,-500.0,0.00013541,2]
[347134577,1735516236738,-500.0,0.00013541,2]
[347134578,1735516236748,-507.37,0.00013541,2]
[347134579,1735516236758,-500.0,0.00013541,2]
[347134580,1735516236768,-500.0,0.00013541,2]
[347134581,1735516236778,-500.0,0.00013541,2]
[347134582,1735516236787,-500.0,0.00013541,2]
[347134583,1735516236796,-500.0,0.00013541,2]
[347134584,1735516236805,-637.58,0.00013541,2]
[347134585,1735516236814,-500.0,0.00013541,2]
[347134586,1735516236824,-500.0,0.00013541,2]
[347134587,1735516236833,-500.0,0.00013541,2]
[347134588,1735516236843,-500.0,0.00013541,2]
[347134589,1735516236854,-500.0,0.00013541,2]
[347134590,1735516236863,-500.0,0.00013541,2]
[347134591,1735516236873,-500.0,0.00013541,2]
[347134592,1735516236885,-587.69,0.00013541,2]
[347134593,1735516236895,-500.0,0.00013541,2]
[347134594,1735516236907,-500.0,0.00013541,2]
[347134595,1735516236918,-673.21,0.00013541,2]
[347134596,1735516236927,-500.0,0.00013541,2]
[347134597,1735516236937,-500.0,0.00013541,2]
[347134598,1735516236947,-500.0,0.00013541,2]
[347134599,1735516236956,-500.0,0.00013541,2]
[347134600,1735516236965,-754.49,0.00013541,2]
[347134601,1735516236975,-500.0,0.00013541,2]
[347134602,1735516236986,-611.22,0.00013541,2]
[347134603,1735516236996,-565.67,0.00013541,2]
[347134604,1735516237005,-500.0,0.00013541,2]
[347134605,1735516237015,-982.47,0.00013542,2]
[347134606,1735516237024,-500.0,0.00013542,2]
[347134607,1735516237033,-3402.68,0.00013542,2]
[347134608,1735516237043,-952.59,0.00013542,2]
[347134609,1735516237052,-1215.87,0.00013542,2]
[347134610,1735516237061,-644.97,0.00013542,2]
[347134611,1735516237070,-1605.86,0.00013542,2]
[347134612,1735516237079,-500.0,0.00013542,2]
[347134613,1735516237089,-500.0,0.00013542,2]
[347134614,1735516237098,-500.0,0.00013542,2]
[347134615,1735516237107,-500.0,0.00013542,2]
[347134616,1735516237117,-518.27538464,0.00013542,2]
[347134617,1735516237126,-752.02,0.00013543,2]
[347134618,1735516237135,-1498.88,0.00013543,2]
[347134619,1735516237145,-1890.79,0.00013543,2]
[347134620,1735516237154,-1063.72,0.00013543,2]
[347134621,1735516237163,-836.69,0.00013543,2]
[347134622,1735516237172,-1098.681144,0.00013543,2]
[347134623,1735516237182,-1174.258366,0.00013543,2]
[347134624,1735516237191,-3943.88471672,0.00013543,2]
[347134625,1735516237526,-764.09346099,0.00013543,2]
[347134626,1735516237545,-1276.63304039,0.00013543,2]
[347134627,1735516237557,-5718.0087819,0.00013543,2]
[347134628,1735516237566,-500.0,0.00013543,2]
[347134629,1735516237576,-500.0,0.00013543,2]
[347134630,1735516237585,-500.0,0.00013543,2]
[347134631,1735516237594,-207.27562985,0.00013543,2]
[347134632,1735516237625,-500.0,0.00013268,2]
[347134633,1735516237634,-292.72437015,0.00013543,2]
[347134634,1735516237643,-975.0,0.00013543,2]
[347134635,1735516237652,-500.0,0.00013543,2]
[347134636,1735516237661,-500.0,0.00013543,2]
[347134637,1735516237671,-500.0,0.00013543,2]
[347134638,1735516237680,-951.99,0.00013543,2]
[347134639,1735516237689,-500.0,0.00013543,2]
[347134640,1735516237698,-500.0,0.00013543,2]
[347134641,1735516237707,-324.57,0.00013543,2]
[347134642,1735516237717,-500.0,0.00013543,2]
[347134643,1735516237726,-500.0,0.00013543,2]
[347134644,1735516237735,-500.0,0.00013543,2]
[347134645,1735516237744,-500.0,0.00013543,2]
[347134646,1735516237753,-500.0,0.00013543,2]
[347134647,1735516237762,-500.0,0.00013543,2]
[347134648,1735516237772,-1659.71562985,0.00013543,2]
[347134649,1735516237783,-509.22801043,0.00013543,2]
[347134650,1735516237795,-468.43921911,0.00013543,2]
[347134651,1735516238526,-500.0,0.00013269,2]
[347134652,1735516238535,-2627.50714061,0.00013543,2]
[347134653,1735516238545,-500.0,0.00013543,2]
[347134654,1735516238556,-500.0,0.00013543,2]
[347134655,1735516238567,-500.0,0.00013543,2]
[347134656,1735516238577,-1033.62,0.00013543,2]
[347134657,1735516238588,-500.0,0.00013543,2]
[347134658,1735516238597,-500.0,0.00013543,2]
[347134659,1735516238606,-500.0,0.00013543,2]
[347134660,1735516238615,-500.0,0.00013543,2]
[347134661,1735516238624,-500.0,0.00013543,2]
[347134662,1735516238633,-500.0,0.00013543,2]
[347134663,1735516238642,-500.0,0.00013543,2]
[347134664,1735516238651,-548.11,0.00013543,2]
[347134665,1735516238660,-948.38,0.00013543,2]
[347134666,1735516238669,-500.0,0.00013543,2]
[347134667,1735516238679,-500.0,0.00013543,2]
[347134668,1735516238690,-572.21,0.00013543,2]
[347134669,1735516238700,-500.0,0.00013543,2]
[347134670,1735516238709,-500.0,0.00013543,2]
[347134671,1735516238719,-500.0,0.00013543,2]
[347134672,1735516238728,-500.0,0.00013543,2]
[347134673,1735516238737,-500.0,0.00013543,2]
[347134674,1735516238747,-1143.41,0.00013543,2]
[347134675,1735516238756,-500.0,0.00013543,2]
[347134676,1735516238765,-500.0,0.00013543,2]
[347134677,1735516238775,-500.0,0.00013543,2]
[347134678,1735516238784,-500.0,0.00013543,2]
[347134679,1735516238793,-500.0,0.00013543,2]
[347134680,1735516238802,-630.18,0.00013543,2]
[347134681,1735516238812,-500.0,0.00013543,2]
[347134682,1735516238821,-500.0,0.00013543,2]
[347134683,1735516238830,-500.0,0.00013543,2]
[347134684,1735516238839,-500.0,0.00013543,2]
[347134685,1735516238849,-500.0,0.00013543,2]
[347134686,1735516238858,-500.0,0.00013543,2]
[347134687,1735516238868,-500.0,0.00013543,2]
[347134688,1735516238877,-530.62,0.00013543,2]
[347134689,1735516238886,-500.0,0.00013543,2]
[347134690,1735516238896,-500.0,0.00013543,2]
[347134691,1735516238910,-500.0,0.00013543,2]
[347134692,1735516238919,-500.0,0.00013543,2]
[347134693,1735516238928,-500.0,0.00013543,2]
[347134694,1735516238938,-1319.88,0.00013543,2]
[347134695,1735516238947,-500.0,0.00013543,2]
[347134696,1735516238956,-500.0,0.00013543,2]
[347134697,1735516238965,-500.0,0.00013543,2]
[347134698,1735516238975,-676.35,0.00013543,2]
[347134699,1735516238985,-500.0,0.00013543,2]
[347134700,1735516238994,-500.0,0.00013543,2]
[347134701,1735516239003,-500.0,0.00013543,2]
[347134702,1735516239013,-500.0,0.00013543,2]
[347134703,1735516239022,-500.0,0.00013543,2]
[347134704,1735516239032,-500.0,0.00013543,2]
[347134705,1735516239041,-500.0,0.00013543,2]
[347134706,1735516239050,-530.33,0.00013543,2]
[347134707,1735516239060,-1198.75,0.00013543,2]
[347134708,1735516239069,-500.0,0.00013543,2]
[347134709,1735516239078,-697.72,0.00013543,2]
[347134710,1735516239088,-583.38897155,0.00013543,2]
[347134711,1735516239097,-500.0,0.00013543,2]
[347134712,1735516239107,-1282.33,0.00013543,2]
[347134713,1735516239116,-500.0,0.00013543,2]
[347134714,1735516239125,-500.0,0.00013543,2]
[347134715,1735516239135,-500.0,0.00013543,2]
[347134716,1735516239145,-500.0,0.00013543,2]
[347134717,1735516239155,-692.87,0.00013543,2]
[347134718,1735516239168,-500.0,0.00013543,2]
[347134719,1735516239178,-735.52,0.00013543,2]
[347134720,1735516239189,-500.0,0.00013543,2]
[347134721,1735516239199,-500.0,0.00013543,2]
[347134722,1735516239209,-500.0,0.00013543,2]
[347134723,1735516239221,-500.0,0.00013543,2]
[347134724,1735516239231,-500.0,0.00013543,2]
[347134725,1735516239241,-500.0,0.00013543,2]
[347134726,1735516239251,-500.0,0.00013543,2]
[347134727,1735516239262,-500.0,0.00013543,2]
[347134728,1735516239273,-500.0,0.00013543,2]
[347134729,1735516239284,-512.72,0.00013543,2]
[347134730,1735516239294,-1776.82,0.00013543,2]
[347134731,1735516239304,-500.0,0.00013543,2]
[347134732,1735516239314,-500.0,0.00013543,2]
[347134733,1735516239324,-723.52,0.00013543,2]
[347134734,1735516239334,-500.0,0.00013543,2]
[347134735,1735516239345,-500.0,0.00013543,2]
[347134736,1735516239357,-500.0,0.00013543,2]
[347134737,1735516239367,-1218.13,0.00013543,2]
[347134738,1735516239379,-500.0,0.00013543,2]
[347134739,1735516239389,-500.0,0.00013543,2]
[347134740,1735516239399,-523.81,0.00013543,2]
[347134741,1735516239409,-500.0,0.00013543,2]
[347134742,1735516239419,-500.0,0.00013543,2]
[347134743,1735516239430,-5319.35,0.00013543,2]
[347134744,1735516239440,-500.0,0.00013543,2]
[347134745,1735516239450,-500.0,0.00013543,2]
[347134746,1735516239460,-672.66,0.00013543,2]
[347134747,1735516239470,-500.0,0.00013543,2]
[347134748,1735516239480,-672.68,0.00013543,2]
[347134749,1735516239490,-3466.35,0.00013543,2]
[347134750,1735516239500,-500.0,0.00013543,2]
[347134751,1735516239511,-500.0,0.00013543,2]
[347134752,1735516239520,-500.0,0.00013543,2]
[347134753,1735516239531,-500.0,0.00013543,2]
[347134754,1735516239541,-500.0,0.00013543,2]
[347134755,1735516239552,-500.0,0.00013543,2]
[347134756,1735516239562,-500.0,0.00013543,2]
[347134757,1735516239572,-530.97,0.00013543,2]
[347134758,1735516239582,-500.0,0.00013543,2]
[347134759,1735516239593,-500.0,0.00013543,2]
[347134760,1735516239604,-500.0,0.00013543,2]
[347134761,1735516239614,-504.33,0.00013543,2]
[347134762,1735516239624,-500.0,0.00013543,2]
[347134763,1735516239635,-671.31,0.00013543,2]
[347134764,1735516239646,-1484.53,0.00013543,2]
[347134765,1735516239656,-513.87,0.00013543,2]
[347134766,1735516239666,-500.0,0.00013543,2]
[347134767,1735516239677,-600.15,0.00013543,2]
[347134768,1735516239687,-500.0,0.00013543,2]
[347134769,1735516239698,-500.0,0.00013543,2]
[347134770,1735516239708,-738.43,0.00013543,2]
[347134771,1735516239718,-500.0,0.00013543,2]
[347134772,1735516239729,-683.82,0.00013543,2]
[347134773,1735516239739,-500.0,0.00013543,2]
[347134774,1735516239750,-500.0,0.00013543,2]
[347134775,1735516239760,-502.69,0.00013543,2]
[347134776,1735516239770,-500.0,0.00013543,2]
[347134777,1735516239781,-500.0,0.00013543,2]
[347134778,1735516239791,-528.26,0.00013543,2]
[347134779,1735516239801,-500.0,0.00013543,2]
[347134780,1735516239812,-500.0,0.00013543,2]
[347134781,1735516239822,-501.7,0.00013543,2]
[347134782,1735516239832,-737.39,0.00013543,2]
[347134783,1735516239842,-500.0,0.00013543,2]
[347134784,1735516239853,-542.91,0.00013543,2]
[347134785,1735516239863,-500.0,0.00013543,2]
[347134786,1735516239873,-500.0,0.00013543,2]
[347134787,1735516239885,-623.23,0.00013543,2]
[347134788,1735516239896,-549.91,0.00013543,2]
[347134789,1735516239910,-500.0,0.00013543,2]
[347134790,1735516239921,-859.18,0.00013543,2]
[347134791,1735516239931,-830.18,0.00013543,2]
[347134792,1735516239943,-634.86,0.00013543,2]
[347134793,1735516239953,-1333.37,0.00013543,2]
[347134794,1735516239963,-670.56,0.00013543,2]
[347134795,1735516239974,-2824.64,0.00013543,2]
[347134796,1735516239986,-500.0,0.00013543,2]
[347134797,1735516239996,-621.89,0.00013543,2]
[347134798,1735516240007,-500.0,0.00013543,2]
[347134799,1735516240017,-1297.3,0.00013543,2]
[347134800,1735516240028,-855.09,0.00013543,2]
[347134801,1735516240038,-539.58,0.00013543,2]
[347134802,1735516240049,-1567.33,0.00013543,2]
[347134803,1735516240059,-804.2,0.00013543,2]
[347134804,1735516240069,-4799.81,0.00013543,2]
[347134805,1735516240079,-646.65,0.00013543,2]
[347134806,1735516240090,-530.85,0.00013543,2]
[347134807,1735516240100,-1681.84,0.00013543,2]
[347134808,1735516240110,-1317.22,0.00013543,2]
[347134809,1735516240120,-702.71,0.00013543,2]
[347134810,1735516240130,-785.18,0.00013543,2]
[347134811,1735516240140,-1370.35,0.00013543,2]
[347134812,1735516240150,-1460.45,0.00013543,2]
[347134813,1735516240160,-500.0,0.00013543,2]
[347134814,1735516240170,-500.0,0.00013544,2]
[347134815,1735516240180,-500.0,0.00013544,2]
[347134816,1735516240190,-500.0,0.00013544,2]
[347134817,1735516240200,-500.0,0.00013544,2]
[347134818,1735516240210,-500.0,0.00013544,2]
[347134819,1735516240220,-500.0,0.00013544,2]
[347134820,1735516240230,-1928.17,0.00013544,2]
[347134821,1735516240240,-500.0,0.00013544,2]
[347134822,1735516240250,-500.0,0.00013544,2]
[347134823,1735516240260,-841.72,0.00013544,2]
[347134824,1735516240270,-500.0,0.00013544,2]
[347134825,1735516240280,-1373.86,0.00013544,2]
[347134826,1735516240290,-8537.56,0.00013544,2]
[347134827,1735516240300,-500.0,0.00013544,2]
[347134828,1735516240310,-500.0,0.00013544,2]
[347134829,1735516240320,-1407.42,0.00013544,2]
[347134830,1735516240330,-500.0,0.00013544,2]
[347134831,1735516240340,-500.0,0.00013544,2]
[347134832,1735516240351,-1110.5,0.00013544,2]
[347134833,1735516240361,-500.0,0.00013544,2]
[347134834,1735516240371,-718.83,0.00013544,2]
[347134835,1735516240381,-1751.26,0.00013544,2]
[347134836,1735516240391,-500.0,0.00013544,2]
[347134837,1735516240402,-500.0,0.00013544,2]
[347134838,1735516240412,-500.0,0.00013544,2]
[347134839,1735516240422,-500.0,0.00013544,2]
[347134841,1735516240431,-500.0,0.00013544,2]
[347134843,1735516240441,-3277.3,0.00013544,2]
[347134844,1735516240451,-500.0,0.00013544,2]
[347134845,1735516240461,-239.17879608,0.00013544,2]
[347134846,1735516240471,-500.0,0.00013544,2]
[347134847,1735516240481,-1266.29,0.00013544,2]
[347134848,1735516240491,-500.0,0.00013544,2]
[347134849,1735516240501,-500.0,0.00013544,2]
[347134850,1735516240512,-931.0,0.00013544,2]
[347134851,1735516240525,-500.0,0.00013544,2]
[347134852,1735516240538,-265.35124324,0.00013544,2]
[347134853,1735516240551,-295.79793656,0.00013544,2]
[347134854,1735516240563,-500.0,0.00013544,2]
[347134855,1735516240573,-682.0,0.00013544,2]
[347134856,1735516240585,-500.0,0.00013544,2]
[347134857,1735516240597,-1235.98,0.00013544,2]
[347134858,1735516240609,-293.37381808,0.00013545,2]
[347134859,1735516240621,-500.0,0.00013545,2]
[347134860,1735516240633,-500.0,0.00013545,2]
[347134861,1735516240644,-551.92,0.00013545,2]
[347134862,1735516240656,-500.0,0.00013545,2]
[347134863,1735516240667,-517.03,0.00013545,2]
[347134864,1735516240680,-500.0,0.00013545,2]
[347134865,1735516240692,-500.0,0.00013545,2]
[347134866,1735516240702,-500.0,0.00013545,2]
[347134867,1735516240714,-500.0,0.00013545,2]
[347134868,1735516240726,-500.0,0.00013545,2]
[347134869,1735516240738,-638.39424937,0.00013545,2]
[347134870,1735516240749,-500.0,0.00013545,2]
[347134871,1735516240761,-584.89,0.00013545,2]
[347134872,1735516240772,-578.35,0.00013545,2]
[347134873,1735516240784,-500.0,0.00013545,2]
[347134874,1735516240796,-598.06,0.00013545,2]
[347134875,1735516240807,-500.0,0.00013545,2]
[347134876,1735516240818,-500.0,0.00013545,2]
[347134877,1735516240831,-589.08,0.00013545,2]
[347134878,1735516240842,-560.28,0.00013545,2]
[347134879,1735516240854,-500.0,0.00013545,2]
[347134880,1735516240866,-500.0,0.00013545,2]
[347134881,1735516240877,-500.0,0.00013545,2]
[347134882,1735516240889,-500.0,0.00013545,2]
[347134883,1735516240900,-634.09,0.00013545,2]
[347134884,1735516240914,-500.0,0.00013545,2]
[347134885,1735516240926,-500.0,0.00013545,2]
[347134886,1735516240938,-580.17,0.00013545,2]
[347134887,1735516240950,-500.0,0.00013545,2]
[347134888,1735516240962,-545.11,0.00013545,2]
[347134889,1735516240973,-518.16,0.00013545,2]
[347134890,1735516240983,-500.0,0.00013545,2]
[347134891,1735516240995,-500.0,0.00013545,2]
[347134892,1735516241005,-500.0,0.00013545,2]
[347134893,1735516241018,-542.52,0.00013545,2]
[347134894,1735516241030,-2855.85,0.00013545,2]
[347134895,1735516241040,-500.0,0.00013545,2]
[347134896,1735516241050,-500.0,0.00013545,2]
[347134897,1735516241060,-1808.1,0.00013545,2]
[347134898,1735516241070,-660.73,0.00013545,2]
[347134899,1735516241082,-504.46,0.00013545,2]
[347134900,1735516241095,-642.24,0.00013545,2]
[347134901,1735516241107,-1367.71,0.00013545,2]
[347134902,1735516241118,-651.87,0.00013545,2]
[347134903,1735516241128,-500.0,0.00013545,2]
[347134904,1735516241145,-551.96,0.00013545,2]
[347134905,1735516241154,-500.0,0.00013545,2]